[Event "Titled Tuesday Blitz April 05 Early 2022"]
[White "Sanchez Alvares, Kelvin Antonio"]
[Black "Gatterer, Florian"]
[WhiteFideId "3906680"]
[BlackFideId "811688"]
[WhiteElo "2193"]
[BlackElo "2218"]
[Result "1/2-1/2"]
[Round "03"]
[TimeControl "180+1"]
[Date "2022.04.05"]
[WhiteClock "0:00:05"]
[BlackClock "0:00:09"]

1. e4 {[%clk 0:03:00]}  d6 {[%clk 0:03:00]} 2. d4 {[%clk 0:03:00]}  Nf6 {[%clk 0:03:00]} 3. Nc3 {[%clk 0:03:01]}  g6 {[%clk 0:03:00]} 4. f4 {[%clk 0:03:00]}  Bg7 {[%clk 0:02:59]} 5. Nf3 {[%clk 0:03:01]}  O-O {[%clk 0:02:58]} 6. e5 {[%clk 0:03:00]}  dxe5 {[%clk 0:02:57]} 7. fxe5 {[%clk 0:03:00]}  Nd5 {[%clk 0:02:57]} 8. Ne4 {[%clk 0:03:00]}  Bf5 {[%clk 0:02:55]} 9. Ng3 {[%clk 0:02:58]}  Bg4 {[%clk 0:02:55]} 10. Be2 {[%clk 0:02:57]}  c5 {[%clk 0:02:51]} 11. dxc5 {[%clk 0:02:46]}  Qa5+ {[%clk 0:02:49]} 12. c3 {[%clk 0:02:33]}  Qxc5 {[%clk 0:02:48]} 13. Qd4 {[%clk 0:02:33]}  Qxd4 {[%clk 0:02:43]} 14. cxd4 {[%clk 0:02:26]}  Nc6 {[%clk 0:02:41]} 15. h3 {[%clk 0:02:12]}  Bxf3 {[%clk 0:02:35]} 16. Bxf3 {[%clk 0:02:13]}  Rad8 {[%clk 0:02:31]} 17. Ne2 {[%clk 0:02:09]}  Ndb4 {[%clk 0:02:12]} 18. Bxc6 {[%clk 0:02:06]}  Nxc6 {[%clk 0:02:08]} 19. Be3 {[%clk 0:02:06]}  f6 {[%clk 0:02:08]} 20. exf6 {[%clk 0:02:02]}  exf6 {[%clk 0:02:05]} 21. Kf2 {[%clk 0:01:57]}  Rfe8 {[%clk 0:01:56]} 22. Rad1 {[%clk 0:01:52]}  Nb4 {[%clk 0:01:50]} 23. a3 {[%clk 0:01:48]}  Nd5 {[%clk 0:01:49]} 24. Bc1 {[%clk 0:01:47]}  f5 {[%clk 0:01:42]} 25. Rhe1 {[%clk 0:01:39]}  Nf6 {[%clk 0:01:42]} 26. Nc3 {[%clk 0:01:30]}  Rxe1 {[%clk 0:01:32]} 27. Kxe1 {[%clk 0:01:31]}  Nd5 {[%clk 0:00:58]} 28. Ke2 {[%clk 0:01:25]}  Kf7 {[%clk 0:00:56]} 29. Bg5 {[%clk 0:01:18]}  Rd7 {[%clk 0:00:55]} 30. Nxd5 {[%clk 0:01:10]}  Rxd5 {[%clk 0:00:54]} 31. Be3 {[%clk 0:01:09]}  Rd7 {[%clk 0:00:46]} 32. Kd3 {[%clk 0:01:05]}  Ke6 {[%clk 0:00:46]} 33. Rc1 {[%clk 0:01:04]}  f4 {[%clk 0:00:44]} 34. Bf2 {[%clk 0:01:03]}  a6 {[%clk 0:00:25]} 35. Ke4 {[%clk 0:01:00]}  g5 {[%clk 0:00:23]} 36. Rc5 {[%clk 0:00:52]}  h6 {[%clk 0:00:21]} 37. d5+ {[%clk 0:00:49]}  Kd6 {[%clk 0:00:13]} 38. b4 {[%clk 0:00:47]}  Re7+ {[%clk 0:00:13]} 39. Kf3 {[%clk 0:00:44]}  Re5 {[%clk 0:00:11]} 40. Bd4 {[%clk 0:00:41]}  Re7 {[%clk 0:00:08]} 41. Bxg7 {[%clk 0:00:33]}  Rxg7 {[%clk 0:00:09]} 42. Kg4 {[%clk 0:00:33]}  Re7 {[%clk 0:00:07]} 43. h4 {[%clk 0:00:18]}  Re3 {[%clk 0:00:07]} 44. hxg5 {[%clk 0:00:17]}  hxg5 {[%clk 0:00:08]} 45. Kxg5 {[%clk 0:00:17]}  Rg3+ {[%clk 0:00:08]} 46. Kxf4 {[%clk 0:00:17]}  Rxg2 {[%clk 0:00:09]} 47. Ke4 {[%clk 0:00:17]}  Ra2 {[%clk 0:00:08]} 48. Rc3 {[%clk 0:00:17]}  Re2+ {[%clk 0:00:08]} 49. Kd4 {[%clk 0:00:17]}  Rg2 {[%clk 0:00:08]} 50. Rh3 {[%clk 0:00:15]}  Rg4+ {[%clk 0:00:08]} 51. Kc3 {[%clk 0:00:15]}  Kxd5 {[%clk 0:00:08]} 52. Rh7 {[%clk 0:00:15]}  Kc6 {[%clk 0:00:08]} 53. a4 {[%clk 0:00:14]}  Kb6 {[%clk 0:00:08]} 54. a5+ {[%clk 0:00:12]}  Ka7 {[%clk 0:00:08]} 55. Rc7 {[%clk 0:00:11]}  Rg3+ {[%clk 0:00:08]} 56. Kb2 {[%clk 0:00:11]}  Rg2+ {[%clk 0:00:08]} 57. Kb3 {[%clk 0:00:11]}  Rg3+ {[%clk 0:00:09]} 58. Rc3 {[%clk 0:00:03]}  Rg4 {[%clk 0:00:08]} 59. Rc4 {[%clk 0:00:03]}  Rg3+ {[%clk 0:00:08]} 60. Rc3 {[%clk 0:00:03]}  Rg4 {[%clk 0:00:09]} 61. Rc4 {[%clk 0:00:04]}  Rg3+ {[%clk 0:00:09]} 62. Rc3 {[%clk 0:00:05]} 1/2-1/2


[Site "https://www.chess.com"]

[Event "Titled Tuesday Blitz April 05 Early 2022"]
[White "Seemann, Jakub"]
[Black "Chincholimath, Halsagar"]
[WhiteFideId "21874697"]
[BlackFideId "5022487"]
[WhiteElo "2003"]
[BlackElo "1737"]
[Result "1-0"]
[Round "03"]
[TimeControl "180+1"]
[Date "2022.04.05"]
[WhiteClock "0:01:11"]
[BlackClock "0:00:02"]

1. b3 {[%clk 0:03:00]}  c5 {[%clk 0:02:56]} 2. Bb2 {[%clk 0:03:01]}  Nc6 {[%clk 0:02:55]} 3. g3 {[%clk 0:03:02]}  e5 {[%clk 0:02:54]} 4. Bg2 {[%clk 0:03:02]}  d6 {[%clk 0:02:52]} 5. d3 {[%clk 0:03:02]}  g6 {[%clk 0:02:52]} 6. Nd2 {[%clk 0:03:02]}  Bg7 {[%clk 0:02:51]} 7. e3 {[%clk 0:03:03]}  Nge7 {[%clk 0:02:50]} 8. Ne2 {[%clk 0:03:04]}  O-O {[%clk 0:02:49]} 9. O-O {[%clk 0:03:04]}  Be6 {[%clk 0:02:45]} 10. h3 {[%clk 0:03:04]}  f5 {[%clk 0:02:45]} 11. a3 {[%clk 0:03:04]}  g5 {[%clk 0:02:38]} 12. f4 {[%clk 0:02:56]}  gxf4 {[%clk 0:02:26]} 13. exf4 {[%clk 0:02:55]}  Ng6 {[%clk 0:02:16]} 14. fxe5 {[%clk 0:02:55]}  Ngxe5 {[%clk 0:02:04]} 15. Nf4 {[%clk 0:02:55]}  Bf7 {[%clk 0:02:04]} 16. Nc4 {[%clk 0:02:42]}  Rb8 {[%clk 0:01:41]} 17. Nxe5 {[%clk 0:02:38]}  dxe5 {[%clk 0:01:40]} 18. Nh5 {[%clk 0:02:37]}  Bh8 {[%clk 0:01:32]} 19. Rxf5 {[%clk 0:02:32]}  Bg6 {[%clk 0:01:23]} 20. Rxf8+ {[%clk 0:02:17]}  Qxf8 {[%clk 0:01:22]} 21. Qg4 {[%clk 0:02:17]}  Qe8 {[%clk 0:01:18]} 22. Bd5+ {[%clk 0:02:14]}  Kf8 {[%clk 0:01:08]} 23. Rf1+ {[%clk 0:02:11]}  Ke7 {[%clk 0:01:08]} 24. Qg5+ {[%clk 0:02:11]}  Kd6 {[%clk 0:01:05]} 25. Nf6 {[%clk 0:02:09]}  Qe7 {[%clk 0:00:50]} 26. Bg2 {[%clk 0:01:41]}  Rf8 {[%clk 0:00:38]} 27. Ne4+ {[%clk 0:01:34]}  Bxe4 {[%clk 0:00:36]} 28. Qxe7+ {[%clk 0:01:35]}  Kxe7 {[%clk 0:00:32]} 29. Bxe4 {[%clk 0:01:35]}  Rxf1+ {[%clk 0:00:27]} 30. Kxf1 {[%clk 0:01:34]}  h6 {[%clk 0:00:19]} 31. c3 {[%clk 0:01:32]}  Kf6 {[%clk 0:00:18]} 32. Ke2 {[%clk 0:01:32]}  Nd8 {[%clk 0:00:15]} 33. Kf3 {[%clk 0:01:32]}  b6 {[%clk 0:00:15]} 34. Bc1 {[%clk 0:01:32]}  Bg7 {[%clk 0:00:13]} 35. h4 {[%clk 0:01:32]}  Ne6 {[%clk 0:00:12]} 36. g4 {[%clk 0:01:31]}  b5 {[%clk 0:00:09]} 37. Bc6 {[%clk 0:01:30]}  b4 {[%clk 0:00:08]} 38. axb4 {[%clk 0:01:20]}  cxb4 {[%clk 0:00:08]} 39. Bd2 {[%clk 0:01:16]}  bxc3 {[%clk 0:00:07]} 40. Bxc3 {[%clk 0:01:17]}  Nf4 {[%clk 0:00:06]} 41. Be4 {[%clk 0:01:16]}  Kf7 {[%clk 0:00:04]} 42. Bd2 {[%clk 0:01:15]}  Ne6 {[%clk 0:00:02]} 43. g5 {[%clk 0:01:16]}  Nd4+ {[%clk 0:00:02]} 44. Kg4 {[%clk 0:01:15]}  Nxb3 {[%clk 0:00:02]} 45. Bd5+ {[%clk 0:01:11]} 1-0


[Site "https://www.chess.com"]

[Event "Titled Tuesday Blitz April 05 Early 2022"]
[White "Smirnov, Pavel"]
[Black "Vlassov, Nikolai"]
[WhiteFideId "4123425"]
[BlackFideId "4103360"]
[WhiteElo "2539"]
[BlackElo "2407"]
[Result "*"]
[Round "03"]
[TimeControl "180+1"]
[Date "2022.04.05"]
[WhiteClock "0:01:20"]
[BlackClock "0:01:25"]

1. e4 {[%clk 0:03:00]}  Nc6 {[%clk 0:02:59]} 2. Nf3 {[%clk 0:03:00]}  d5 {[%clk 0:02:59]} 3. exd5 {[%clk 0:02:58]}  Qxd5 {[%clk 0:02:59]} 4. Nc3 {[%clk 0:02:58]}  Qa5 {[%clk 0:03:00]} 5. d4 {[%clk 0:02:58]}  Bg4 {[%clk 0:02:59]} 6. Bb5 {[%clk 0:02:58]}  O-O-O {[%clk 0:02:59]} 7. Bxc6 {[%clk 0:02:52]}  bxc6 {[%clk 0:03:00]} 8. Qe2 {[%clk 0:02:51]}  Kb7 {[%clk 0:02:57]} 9. h3 {[%clk 0:02:38]}  Qh5 {[%clk 0:02:57]} 10. Be3 {[%clk 0:02:33]}  Bxf3 {[%clk 0:02:55]} 11. gxf3 {[%clk 0:02:32]}  e6 {[%clk 0:02:55]} 12. O-O-O {[%clk 0:02:24]}  Bb4 {[%clk 0:02:54]} 13. Qc4 {[%clk 0:02:24]}  Bxc3 {[%clk 0:02:43]} 14. Qxc3 {[%clk 0:02:24]}  Qxf3 {[%clk 0:02:40]} 15. d5 {[%clk 0:02:18]}  exd5 {[%clk 0:02:11]} 16. Qd4 {[%clk 0:01:52]}  Nf6 {[%clk 0:02:02]} 17. Qxa7+ {[%clk 0:01:47]}  Kc8 {[%clk 0:02:03]} 18. Rhg1 {[%clk 0:01:38]}  Qxh3 {[%clk 0:01:49]} 19. Rxg7 {[%clk 0:01:35]}  Qe6 {[%clk 0:01:45]} 20. Bf4 {[%clk 0:01:28]}  Ne8 {[%clk 0:01:41]} 21. Rg3 {[%clk 0:01:20]}  Nd6 {[%clk 0:01:25]} *


[Site "https://www.chess.com"]

[Event "Titled Tuesday Blitz April 05 Early 2022"]
[White "Sovetbekova, Nurai"]
[Black "Tan, Jun Ying"]
[WhiteFideId "13801910"]
[BlackFideId "5710413"]
[WhiteElo "1538"]
[BlackElo "1827"]
[Result "0-1"]
[Round "03"]
[TimeControl "180+1"]
[Date "2022.04.05"]
[WhiteClock "0:00:22"]
[BlackClock "0:00:46"]

1. d4 {[%clk 0:03:00]}  Nf6 {[%clk 0:02:59]} 2. c4 {[%clk 0:03:00]}  c5 {[%clk 0:02:59]} 3. d5 {[%clk 0:03:00]}  e6 {[%clk 0:03:00]} 4. Nc3 {[%clk 0:02:58]}  exd5 {[%clk 0:03:01]} 5. cxd5 {[%clk 0:02:59]}  d6 {[%clk 0:03:01]} 6. Nf3 {[%clk 0:02:58]}  g6 {[%clk 0:03:02]} 7. e4 {[%clk 0:02:48]}  a6 {[%clk 0:03:01]} 8. a4 {[%clk 0:02:47]}  Bg4 {[%clk 0:03:01]} 9. Be2 {[%clk 0:02:45]}  Bxf3 {[%clk 0:03:02]} 10. Bxf3 {[%clk 0:02:46]}  Bg7 {[%clk 0:03:03]} 11. O-O {[%clk 0:02:46]}  O-O {[%clk 0:03:03]} 12. Be2 {[%clk 0:02:43]}  Nbd7 {[%clk 0:03:03]} 13. Qc2 {[%clk 0:02:37]}  Re8 {[%clk 0:02:55]} 14. Bd2 {[%clk 0:02:34]}  Qe7 {[%clk 0:02:52]} 15. f3 {[%clk 0:02:30]}  Nh5 {[%clk 0:02:40]} 16. Nd1 {[%clk 0:02:18]}  Bd4+ {[%clk 0:02:34]} 17. Be3 {[%clk 0:02:12]}  Nf4 {[%clk 0:02:34]} 18. Kh1 {[%clk 0:02:03]}  Nxe2 {[%clk 0:02:25]} 19. Qxe2 {[%clk 0:02:01]}  f5 {[%clk 0:02:26]} 20. Bxd4 {[%clk 0:01:46]}  cxd4 {[%clk 0:02:25]} 21. Qf2 {[%clk 0:01:41]}  fxe4 {[%clk 0:02:17]} 22. fxe4 {[%clk 0:01:42]}  Rf8 {[%clk 0:02:14]} 23. Qe1 {[%clk 0:01:40]}  Rxf1+ {[%clk 0:02:03]} 24. Qxf1 {[%clk 0:01:41]}  Qxe4 {[%clk 0:02:03]} 25. Nf2 {[%clk 0:01:41]}  Qxd5 {[%clk 0:02:02]} 26. Rd1 {[%clk 0:01:38]}  Rf8 {[%clk 0:01:59]} 27. Qe2 {[%clk 0:01:36]}  Ne5 {[%clk 0:01:52]} 28. h3 {[%clk 0:01:28]}  Qc4 {[%clk 0:01:28]} 29. Qd2 {[%clk 0:01:13]}  Qxa4 {[%clk 0:01:22]} 30. Ne4 {[%clk 0:01:11]}  d5 {[%clk 0:01:15]} 31. Ng5 {[%clk 0:00:55]}  d3 {[%clk 0:01:08]} 32. Ne6 {[%clk 0:00:41]}  Rf6 {[%clk 0:01:00]} 33. Nc5 {[%clk 0:00:32]}  Qc2 {[%clk 0:00:53]} 34. Nxd3 {[%clk 0:00:25]}  Rf1+ {[%clk 0:00:50]} 35. Kh2 {[%clk 0:00:22]}  Qxd1 {[%clk 0:00:46]} 0-1


[Site "https://www.chess.com"]

[Event "Titled Tuesday Blitz April 05 Early 2022"]
[White "Srebrnic, Marko"]
[Black "Vusatiuk, Vladimir"]
[WhiteFideId "14603616"]
[BlackFideId "14118610"]
[WhiteElo "2340"]
[BlackElo "2157"]
[Result "0-1"]
[Round "03"]
[TimeControl "180+1"]
[Date "2022.04.05"]
[WhiteClock "0:01:18"]
[BlackClock "0:00:20"]

1. e4 {[%clk 0:03:00]}  c5 {[%clk 0:02:58]} 2. Nf3 {[%clk 0:03:00]}  Nc6 {[%clk 0:02:58]} 3. d4 {[%clk 0:02:59]}  cxd4 {[%clk 0:02:59]} 4. Nxd4 {[%clk 0:03:00]}  Nf6 {[%clk 0:02:59]} 5. Nc3 {[%clk 0:02:57]}  e5 {[%clk 0:02:59]} 6. Nb3 {[%clk 0:02:58]}  Bb4 {[%clk 0:02:55]} 7. Bg5 {[%clk 0:02:58]}  Bxc3+ {[%clk 0:02:47]} 8. bxc3 {[%clk 0:02:58]}  h6 {[%clk 0:02:47]} 9. Bxf6 {[%clk 0:02:58]}  Qxf6 {[%clk 0:02:48]} 10. Bc4 {[%clk 0:02:53]}  d6 {[%clk 0:02:38]} 11. O-O {[%clk 0:02:53]}  O-O {[%clk 0:02:35]} 12. f4 {[%clk 0:02:50]}  exf4 {[%clk 0:02:31]} 13. Nd4 {[%clk 0:02:50]}  Ne5 {[%clk 0:02:23]} 14. Bd5 {[%clk 0:02:50]}  Ng4 {[%clk 0:01:48]} 15. Qd2 {[%clk 0:02:45]}  Ne3 {[%clk 0:01:34]} 16. Qxe3 {[%clk 0:02:32]}  fxe3 {[%clk 0:01:35]} 17. Rxf6 {[%clk 0:02:32]}  gxf6 {[%clk 0:01:36]} 18. Rf1 {[%clk 0:02:32]}  Be6 {[%clk 0:00:56]} 19. Bxb7 {[%clk 0:02:06]}  Rab8 {[%clk 0:00:53]} 20. Bc6 {[%clk 0:02:06]}  Kg7 {[%clk 0:00:41]} 21. Rf3 {[%clk 0:02:06]}  Rb1+ {[%clk 0:00:39]} 22. Rf1 {[%clk 0:02:06]}  Rfb8 {[%clk 0:00:38]} 23. Nb3 {[%clk 0:02:00]}  Rxf1+ {[%clk 0:00:33]} 24. Kxf1 {[%clk 0:02:00]}  Bc4+ {[%clk 0:00:33]} 25. Ke1 {[%clk 0:02:00]}  a5 {[%clk 0:00:33]} 26. Bd5 {[%clk 0:01:28]}  Bxd5 {[%clk 0:00:30]} 27. exd5 {[%clk 0:01:29]}  a4 {[%clk 0:00:31]} 28. Nd4 {[%clk 0:01:29]}  Rb2 {[%clk 0:00:28]} 29. Ke2 {[%clk 0:01:25]}  Rxa2 {[%clk 0:00:25]} 30. Kxe3 {[%clk 0:01:26]}  Ra1 {[%clk 0:00:24]} 31. c4 {[%clk 0:01:19]}  a3 {[%clk 0:00:25]} 32. c5 {[%clk 0:01:19]}  dxc5 {[%clk 0:00:23]} 33. Nb5 {[%clk 0:01:18]}  a2 {[%clk 0:00:21]} 34. Nc3 {[%clk 0:01:18]}  Re1+ {[%clk 0:00:20]} 0-1


[Site "https://www.chess.com"]

[Event "Titled Tuesday Blitz April 05 Early 2022"]
[White "Stromboli, Ettore"]
[Black "Mirzoev, Azer"]
[WhiteFideId "813761"]
[BlackFideId "13400304"]
[WhiteElo "2414"]
[BlackElo "2525"]
[Result "0-1"]
[Round "03"]
[TimeControl "180+1"]
[Date "2022.04.05"]
[WhiteClock "0:00:08"]
[BlackClock "0:01:42"]

1. e4 {[%clk 0:03:00]}  c5 {[%clk 0:03:00]} 2. Nf3 {[%clk 0:02:58]}  d6 {[%clk 0:03:01]} 3. d4 {[%clk 0:02:58]}  cxd4 {[%clk 0:03:01]} 4. Nxd4 {[%clk 0:02:59]}  Nf6 {[%clk 0:03:02]} 5. f3 {[%clk 0:03:00]}  a6 {[%clk 0:03:02]} 6. c4 {[%clk 0:03:00]}  e5 {[%clk 0:02:59]} 7. Nc2 {[%clk 0:02:57]}  Be6 {[%clk 0:03:00]} 8. Nc3 {[%clk 0:02:57]}  Nbd7 {[%clk 0:03:00]} 9. Be2 {[%clk 0:02:52]}  Rc8 {[%clk 0:03:00]} 10. Ne3 {[%clk 0:02:52]}  Be7 {[%clk 0:03:00]} 11. O-O {[%clk 0:02:52]}  O-O {[%clk 0:03:00]} 12. Kh1 {[%clk 0:02:44]}  Nc5 {[%clk 0:02:46]} 13. b4 {[%clk 0:02:29]}  Ncd7 {[%clk 0:02:45]} 14. Ncd5 {[%clk 0:02:24]}  Nb6 {[%clk 0:02:42]} 15. Qb3 {[%clk 0:01:27]}  Nbxd5 {[%clk 0:02:41]} 16. exd5 {[%clk 0:01:24]}  Bd7 {[%clk 0:02:40]} 17. Ba3 {[%clk 0:01:20]}  Nh5 {[%clk 0:02:37]} 18. Rfd1 {[%clk 0:01:16]}  Nf4 {[%clk 0:02:33]} 19. Bf1 {[%clk 0:01:16]}  b6 {[%clk 0:02:33]} 20. c5 {[%clk 0:01:14]}  bxc5 {[%clk 0:02:33]} 21. bxc5 {[%clk 0:01:04]}  dxc5 {[%clk 0:02:33]} 22. d6 {[%clk 0:00:59]}  Bg5 {[%clk 0:02:33]} 23. Bxa6 {[%clk 0:00:57]}  Rb8 {[%clk 0:02:29]} 24. Qc2 {[%clk 0:00:51]}  Qa5 {[%clk 0:02:25]} 25. Nc4 {[%clk 0:00:32]}  Qxa6 {[%clk 0:02:23]} 26. Nxe5 {[%clk 0:00:32]}  Be6 {[%clk 0:02:18]} 27. Bxc5 {[%clk 0:00:29]}  Ng6 {[%clk 0:02:18]} 28. Nxg6 {[%clk 0:00:17]}  hxg6 {[%clk 0:02:19]} 29. d7 {[%clk 0:00:16]}  Rfd8 {[%clk 0:02:18]} 30. Rab1 {[%clk 0:00:11]}  Rxb1 {[%clk 0:02:17]} 31. Qxb1 {[%clk 0:00:12]}  Rxd7 {[%clk 0:02:12]} 32. Qb8+ {[%clk 0:00:12]}  Kh7 {[%clk 0:02:12]} 33. Rxd7 {[%clk 0:00:12]}  Bxd7 {[%clk 0:02:12]} 34. Qa7 {[%clk 0:00:10]}  Qf1+ {[%clk 0:02:08]} 35. Bg1 {[%clk 0:00:09]}  Be6 {[%clk 0:02:08]} 36. a4 {[%clk 0:00:09]}  Bh4 {[%clk 0:01:49]} 37. a5 {[%clk 0:00:08]}  Bh3 {[%clk 0:01:42]} 0-1


[Site "https://www.chess.com"]

[Event "Titled Tuesday Blitz April 05 Early 2022"]
[White "Taboas Rodriguez, Daniel"]
[Black "Pesotskiy, Mikhail"]
[WhiteFideId "2208466"]
[BlackFideId "34164453"]
[WhiteElo "2429"]
[BlackElo "2010"]
[Result "1-0"]
[Round "03"]
[TimeControl "180+1"]
[Date "2022.04.05"]
[WhiteClock "0:00:54"]
[BlackClock "0:00:04"]

1. d4 {[%clk 0:02:58]}  Nf6 {[%clk 0:03:00]} 2. Nf3 {[%clk 0:02:59]}  e6 {[%clk 0:03:00]} 3. c4 {[%clk 0:03:00]}  Bb4+ {[%clk 0:03:00]} 4. Nbd2 {[%clk 0:03:00]}  a5 {[%clk 0:03:00]} 5. a3 {[%clk 0:03:01]}  Bxd2+ {[%clk 0:03:00]} 6. Bxd2 {[%clk 0:03:02]}  b6 {[%clk 0:03:00]} 7. Bg5 {[%clk 0:03:02]}  h6 {[%clk 0:03:00]} 8. Bh4 {[%clk 0:03:02]}  Bb7 {[%clk 0:03:00]} 9. Nd2 {[%clk 0:03:03]}  d6 {[%clk 0:02:58]} 10. f3 {[%clk 0:03:02]}  e5 {[%clk 0:02:58]} 11. d5 {[%clk 0:03:02]}  Nbd7 {[%clk 0:02:54]} 12. b4 {[%clk 0:03:01]}  O-O {[%clk 0:02:49]} 13. e4 {[%clk 0:03:00]}  axb4 {[%clk 0:02:50]} 14. axb4 {[%clk 0:03:01]}  Rxa1 {[%clk 0:02:51]} 15. Qxa1 {[%clk 0:03:01]}  Qa8 {[%clk 0:02:51]} 16. Qb2 {[%clk 0:03:02]}  Qa4 {[%clk 0:02:50]} 17. Bd3 {[%clk 0:03:01]}  Ra8 {[%clk 0:02:50]} 18. O-O {[%clk 0:03:01]}  Qa2 {[%clk 0:02:47]} 19. Rb1 {[%clk 0:03:01]}  Qxb2 {[%clk 0:02:46]} 20. Rxb2 {[%clk 0:03:02]}  Ra3 {[%clk 0:02:45]} 21. Bb1 {[%clk 0:02:53]}  Kf8 {[%clk 0:02:30]} 22. Ra2 {[%clk 0:02:53]}  Rxa2 {[%clk 0:02:29]} 23. Bxa2 {[%clk 0:02:54]}  Ke8 {[%clk 0:02:29]} 24. Bb3 {[%clk 0:02:54]}  g5 {[%clk 0:02:24]} 25. Bf2 {[%clk 0:02:54]}  Nh5 {[%clk 0:02:20]} 26. g3 {[%clk 0:02:53]}  Kd8 {[%clk 0:02:17]} 27. Ba4 {[%clk 0:02:53]}  Nb8 {[%clk 0:02:16]} 28. Be3 {[%clk 0:02:51]}  Bc8 {[%clk 0:02:16]} 29. Bc2 {[%clk 0:02:44]}  Na6 {[%clk 0:02:12]} 30. b5 {[%clk 0:02:42]}  Nc5 {[%clk 0:02:11]} 31. Kf2 {[%clk 0:02:40]}  f6 {[%clk 0:02:04]} 32. Ke2 {[%clk 0:02:19]}  Ng7 {[%clk 0:02:02]} 33. Bf2 {[%clk 0:02:10]}  f5 {[%clk 0:01:49]} 34. exf5 {[%clk 0:02:08]}  Nxf5 {[%clk 0:01:45]} 35. Be4 {[%clk 0:01:49]}  Ke7 {[%clk 0:01:43]} 36. Be3 {[%clk 0:01:45]}  Nxe3 {[%clk 0:01:40]} 37. Kxe3 {[%clk 0:01:46]}  Kf6 {[%clk 0:01:37]} 38. Bc2 {[%clk 0:01:45]}  Bd7 {[%clk 0:01:30]} 39. Nb1 {[%clk 0:01:42]}  Bc8 {[%clk 0:01:25]} 40. Nc3 {[%clk 0:01:42]}  Bd7 {[%clk 0:01:25]} 41. Na2 {[%clk 0:01:42]}  Bc8 {[%clk 0:01:24]} 42. Nb4 {[%clk 0:01:42]}  Bb7 {[%clk 0:01:14]} 43. Bd3 {[%clk 0:01:39]}  Bc8 {[%clk 0:01:10]} 44. Bf1 {[%clk 0:01:39]}  Kf7 {[%clk 0:01:07]} 45. h4 {[%clk 0:01:37]}  Kf6 {[%clk 0:01:07]} 46. Bd3 {[%clk 0:01:33]}  Kf7 {[%clk 0:00:58]} 47. Bc2 {[%clk 0:01:29]}  Kf6 {[%clk 0:00:58]} 48. Kf2 {[%clk 0:01:29]}  Kf7 {[%clk 0:00:50]} 49. Kg2 {[%clk 0:01:29]}  Kf6 {[%clk 0:00:50]} 50. Kh2 {[%clk 0:01:26]}  Kf7 {[%clk 0:00:50]} 51. Bd3 {[%clk 0:01:26]}  Kf6 {[%clk 0:00:51]} 52. Bf1 {[%clk 0:01:26]}  gxh4 {[%clk 0:00:34]} 53. gxh4 {[%clk 0:01:26]}  Bf5 {[%clk 0:00:31]} 54. Bh3 {[%clk 0:01:23]}  Bd3 {[%clk 0:00:30]} 55. Na6 {[%clk 0:01:05]}  Nxa6 {[%clk 0:00:21]} 56. bxa6 {[%clk 0:01:06]}  Bxc4 {[%clk 0:00:22]} 57. Bc8 {[%clk 0:01:06]}  Bxa6 {[%clk 0:00:13]} 58. Bxa6 {[%clk 0:01:07]}  Kf5 {[%clk 0:00:13]} 59. Kg2 {[%clk 0:01:00]}  Kf4 {[%clk 0:00:14]} 60. Kf2 {[%clk 0:01:01]}  e4 {[%clk 0:00:10]} 61. Be2 {[%clk 0:00:57]}  exf3 {[%clk 0:00:02]} 62. Bxf3 {[%clk 0:00:58]}  b5 {[%clk 0:00:03]} 63. h5 {[%clk 0:00:53]}  b4 {[%clk 0:00:04]} 64. Bd1 {[%clk 0:00:54]} 1-0


[Site "https://www.chess.com"]

[Event "Titled Tuesday Blitz April 05 Early 2022"]
[White "Tymrakiewicz, Rafal"]
[Black "Politov, Pavel Y."]
[WhiteFideId "1108832"]
[BlackFideId "24110515"]
[WhiteElo "2205"]
[BlackElo "2090"]
[Result "1-0"]
[Round "03"]
[TimeControl "180+1"]
[Date "2022.04.05"]
[WhiteClock "0:00:22"]
[BlackClock "0:00:02"]

1. d4 {[%clk 0:02:55]}  d5 {[%clk 0:02:57]} 2. Bg5 {[%clk 0:02:55]}  Nf6 {[%clk 0:02:55]} 3. Bxf6 {[%clk 0:02:52]}  exf6 {[%clk 0:02:53]} 4. e3 {[%clk 0:02:53]}  g6 {[%clk 0:02:50]} 5. g3 {[%clk 0:02:52]}  Bg7 {[%clk 0:02:48]} 6. Bg2 {[%clk 0:02:52]}  f5 {[%clk 0:02:48]} 7. Ne2 {[%clk 0:02:53]}  c6 {[%clk 0:02:47]} 8. Nd2 {[%clk 0:02:49]}  Nd7 {[%clk 0:02:46]} 9. O-O {[%clk 0:02:45]}  Nf6 {[%clk 0:02:45]} 10. c4 {[%clk 0:02:43]}  Be6 {[%clk 0:02:39]} 11. Nf4 {[%clk 0:02:37]}  O-O {[%clk 0:02:35]} 12. Qb3 {[%clk 0:02:33]}  Qd7 {[%clk 0:02:31]} 13. cxd5 {[%clk 0:02:31]}  Bxd5 {[%clk 0:02:18]} 14. Nxd5 {[%clk 0:02:30]}  Nxd5 {[%clk 0:02:18]} 15. Bxd5 {[%clk 0:02:29]}  cxd5 {[%clk 0:02:11]} 16. Rac1 {[%clk 0:02:29]}  Rfc8 {[%clk 0:02:08]} 17. Nb1 {[%clk 0:02:28]}  f4 {[%clk 0:02:03]} 18. Nc3 {[%clk 0:02:18]}  fxe3 {[%clk 0:01:59]} 19. fxe3 {[%clk 0:02:18]}  Rd8 {[%clk 0:01:37]} 20. Na4 {[%clk 0:02:10]}  Qe7 {[%clk 0:01:29]} 21. Rc5 {[%clk 0:02:06]}  Bh6 {[%clk 0:01:27]} 22. Rf3 {[%clk 0:01:51]}  Re8 {[%clk 0:01:10]} 23. Kf2 {[%clk 0:01:34]}  Rac8 {[%clk 0:00:54]} 24. Rxc8 {[%clk 0:01:24]}  Rxc8 {[%clk 0:00:53]} 25. Nc3 {[%clk 0:01:25]}  Re8 {[%clk 0:00:29]} 26. Nxd5 {[%clk 0:01:21]}  Qe6 {[%clk 0:00:15]} 27. Nf6+ {[%clk 0:01:19]}  Kg7 {[%clk 0:00:14]} 28. Nxe8+ {[%clk 0:01:12]}  Qxe8 {[%clk 0:00:15]} 29. g4 {[%clk 0:01:03]}  Qd7 {[%clk 0:00:11]} 30. h3 {[%clk 0:01:03]}  b6 {[%clk 0:00:09]} 31. Qc4 {[%clk 0:01:00]}  Qe7 {[%clk 0:00:08]} 32. Qd5 {[%clk 0:00:57]}  f6 {[%clk 0:00:07]} 33. a3 {[%clk 0:00:50]}  Bg5 {[%clk 0:00:07]} 34. e4 {[%clk 0:00:49]}  Qc7 {[%clk 0:00:07]} 35. e5 {[%clk 0:00:31]}  Qc2+ {[%clk 0:00:06]} 36. Kg3 {[%clk 0:00:26]}  Bh4+ {[%clk 0:00:02]} 37. Kxh4 {[%clk 0:00:22]} 1-0


[Site "https://www.chess.com"]